fUST/lending_fUST_20241108
["ID","MTS","AMOUNT","RATE_DAILY","PERIOD"]
[341655578,1731066645351,-1000.0,0.00022365,7]
[341655579,1731066645360,-1000.0,0.00022365,7]
[341655580,1731066645370,-1000.0,0.00022365,7]
[341655581,1731066645380,-1000.0,0.00022365,7]
[341655582,1731066645389,-1000.0,0.00022365,7]
[341655583,1731066645398,-1000.0,0.00022365,7]
[341655584,1731066645408,-1000.0,0.00022365,7]
[341655585,1731066645421,-1000.0,0.00022365,7]
[341655586,1731066645430,-1000.0,0.00022365,7]
[341655587,1731066645439,-1000.0,0.00022365,7]
[341655588,1731066645449,-1000.0,0.00022365,7]
[341655589,1731066645459,-1000.0,0.00022365,7]
[341655590,1731066645468,-1000.0,0.00022365,7]
[341655591,1731066645477,-1013.10902851,0.00022365,7]
[341655592,1731066645488,-306.82438,0.00022365,7]
[341655593,1731066645501,-306.82438,0.00022365,7]
[341655594,1731066645510,-306.82438,0.00022365,7]
[341655595,1731066645519,-306.82438,0.00022365,7]
[341655596,1731066645528,-151.0,0.00022365,7]
[341655597,1731066645538,-151.0,0.00022365,7]
[341655598,1731066645548,-151.0,0.00022365,7]
[341655599,1731066645557,-151.0,0.00022365,7]
[341655600,1731066645566,-151.0,0.00022365,7]
[341655601,1731066645575,-151.0,0.00022365,7]
[341655602,1731066645584,-515.793637,0.00022365,7]
[341655603,1731066645593,-515.793637,0.00022365,7]
[341655604,1731066645602,-515.793637,0.00022365,7]
[341655605,1731066645612,-515.793637,0.00022365,7]
[341655606,1731066645621,-151.0,0.00022365,7]
[341655607,1731066645631,-151.0,0.00022365,7]
[341655608,1731066645640,-276.469466,0.00022365,7]
[341655609,1731066645650,-276.469466,0.00022365,7]
[341655610,1731066645660,-276.469466,0.00022365,7]
[341655611,1731066645670,-276.469466,0.00022365,7]
[341655612,1731066645679,-151.0,0.00022365,7]
[341655613,1731066645691,-151.0,0.00022365,7]
[341655614,1731066645700,-151.0,0.00022365,7]
[341655615,1731066645710,-151.0,0.00022365,7]
[341655616,1731066645720,-192.038808,0.00022365,7]
[341655617,1731066645730,-192.038808,0.00022365,7]
[341655618,1731066645745,-192.038808,0.00022365,7]
[341655619,1731066645755,-192.038808,0.00022365,7]
[341655620,1731066645765,-237.760298,0.00022365,7]
[341655621,1731066645775,-237.760298,0.00022365,7]
[341655622,1731066645784,-158.814112,0.00022365,7]
[341655623,1731066645798,-158.814112,0.00022365,7]
[341655624,1731066645808,-237.760298,0.00022365,7]
[341655625,1731066645818,-237.760298,0.00022365,7]
[341655626,1731066645828,-158.814112,0.00022365,7]
[341655627,1731066645838,-158.814112,0.00022365,7]
[341655628,1731066645850,-273.19156629,0.00022365,2]
[341655629,1731066645862,-1172.934397,0.00022365,7]
[341655630,1731066645872,-1172.934397,0.00022365,7]
[341655631,1731066645882,-232.0325,0.00022411,2]
[341655632,1731066645891,-166.666666,0.00022431,2]
[341655634,1731066645900,-151.0,0.00022462,7]
[341655636,1731066645910,-310.366626,0.00022462,7]
[341655637,1731066645919,-310.366626,0.00022462,7]
[341655638,1731066645929,-151.0,0.00022462,7]
[341655639,1731066645939,-151.0,0.00022462,7]
[341655640,1731066645948,-747.711241,0.00022462,7]
[341655641,1731066645959,-747.711241,0.00022462,7]
[341655642,1731066645969,-280.896412,0.00022462,7]
[341655643,1731066645979,-280.896412,0.00022462,7]
[341655644,1731066645990,-773.918999,0.00022462,7]
[341655645,1731066646001,-404.578777,0.00022462,7]
[341655646,1731066646011,-404.578777,0.00022462,7]
[341655647,1731066646022,-474.204352,0.00022462,7]
[341655648,1731066646031,-474.204352,0.00022462,7]
[341655649,1731066646041,-151.0,0.00022462,7]
[341655650,1731066646052,-515.793637,0.00022462,7]
[341655651,1731066646062,-515.793637,0.00022462,7]
[341655652,1731066646073,-500.0,0.00022462,2]
[341655653,1731066646083,-276.469466,0.00022462,7]
[341655654,1731066646094,-276.469466,0.00022462,7]
[341655655,1731066646104,-151.0,0.00022462,7]
[341655656,1731066646115,-165.975959,0.00022462,7]
[341655657,1731066646125,-192.038808,0.00022462,7]
[341655658,1731066646135,-192.038802,0.00022462,7]
[341655659,1731066646145,-237.760298,0.00022462,7]
[341655660,1731066646155,-158.814112,0.00022462,7]
[341655661,1731066646165,-237.760295,0.00022462,7]
[341655663,1731066646175,-158.814105,0.00022462,7]
[341655664,1731066646186,-1172.934397,0.00022462,7]
[341655665,1731066646197,-151.0,0.00022463,7]
[341655666,1731066646207,-292.357736,0.00022463,7]
[341655667,1731066646217,-292.357736,0.00022463,7]
[341655668,1731066646227,-310.366626,0.00022464,7]
[341655669,1731066646237,-310.366626,0.00022464,7]
[341655670,1731066646247,-151.0,0.00022464,7]
[341655671,1731066646256,-153.505656,0.00022464,7]
[341655672,1731066646265,-151.0,0.00022464,7]
[341655673,1731066646275,-154.811369,0.00022464,7]
[341655674,1731066646284,-292.357736,0.00022464,7]
[341655675,1731066646294,-292.357736,0.00022464,7]
[341655676,1731066646304,-306.82438,0.00022464,7]
[341655677,1731066646314,-306.82438,0.00022464,7]
[341655678,1731066646324,-151.0,0.00022464,7]
[341655679,1731066646334,-220.148521,0.00022464,7]
[341655680,1731066646344,-151.0,0.00022464,7]
[341655681,1731066646355,-500.0,0.00022464,2]
[341655682,1731066646365,-500.0,0.00022464,2]
[341655683,1731066646375,-500.0,0.00022464,2]
[341655684,1731066646384,-500.0,0.00022464,2]
[341655685,1731066646395,-500.0,0.00022465,2]
[341655686,1731066646405,-310.366626,0.00022465,7]
[341655687,1731066646418,-310.366626,0.00022465,7]
[341655688,1731066646429,-295.750208,0.00022465,7]
[341655689,1731066646438,-151.0,0.00022465,7]
[341655690,1731066646448,-500.0,0.00022465,2]
[341655691,1731066646458,-500.0,0.00022465,2]
[341655692,1731066646468,-500.0,0.00022465,2]
[341655693,1731066646478,-151.0,0.00022465,7]
[341655694,1731066646489,-151.0,0.00022465,7]
[341655695,1731066646500,-500.0,0.00022465,2]
[341655696,1731066646510,-500.0,0.00022465,2]
[341655697,1731066646520,-500.0,0.00022465,2]
[341655698,1731066646530,-292.357736,0.00022465,7]
[341655699,1731066646540,-292.357736,0.00022465,7]
[341655700,1731066646549,-500.0,0.00022465,2]
[341655701,1731066646559,-517.14394288,0.00022465,2]
[341655702,1731066646569,-500.0,0.00022465,2]
[341655703,1731066646579,-500.0,0.00022465,2]
[341655704,1731066646589,-151.0,0.00022465,7]
[341655705,1731066646599,-151.0,0.00022465,7]
[341655706,1731066646698,-500.0,0.00022465,2]
[341655707,1731066646708,-500.0,0.00022465,2]
[341655708,1731066646718,-500.0,0.00022465,2]
[341655709,1731066646727,-500.0,0.00022465,2]
[341655710,1731066646739,-747.711241,0.00022465,7]
[341655711,1731066646748,-747.711241,0.00022465,7]
[341655712,1731066646758,-500.0,0.00022465,2]
[341655713,1731066646768,-500.0,0.00022465,2]
[341655714,1731066646777,-747.711241,0.00022465,7]
[341655715,1731066646787,-747.711241,0.00022465,7]
[341655716,1731066646797,-285.326077,0.00022465,7]
[341655717,1731066646807,-285.326077,0.00022465,7]
[341655718,1731066646817,-285.326077,0.00022465,7]
[341655719,1731066646827,-285.326077,0.00022465,7]
[341655720,1731066646837,-285.326077,0.00022465,7]
[341655721,1731066646847,-285.326077,0.00022465,7]
[341655722,1731066646857,-500.0,0.00022465,2]
[341655723,1731066646866,-750.444699,0.00022465,7]
[341655724,1731066646876,-500.0,0.00022465,2]
[341655725,1731066646886,-501.14428624,0.00022465,2]
[341655726,1731066646895,-280.896412,0.00022465,7]
[341655727,1731066646905,-280.896412,0.00022465,7]
[341655728,1731066646915,-280.896412,0.00022465,7]
[341655729,1731066646925,-280.896412,0.00022465,7]
[341655730,1731066646934,-280.896412,0.00022465,7]
[341655731,1731066646944,-280.896412,0.00022465,7]
[341655732,1731066646954,-393.60869827,0.00022465,2]
[341655733,1731066646964,-773.918999,0.00022465,7]
[341655734,1731066646974,-773.918999,0.00022465,7]
[341655735,1731066646985,-773.918999,0.00022465,7]
[341655736,1731066646995,-773.918999,0.00022465,7]
[341655737,1731066647005,-773.918999,0.00022465,7]
[341655738,1731066647015,-773.918999,0.00022465,7]
[341655739,1731066647025,-404.578777,0.00022465,7]
[341655740,1731066647035,-404.578777,0.00022465,7]
[341655741,1731066647045,-404.578777,0.00022465,7]
[341655742,1731066647055,-404.578777,0.00022465,7]
[341655743,1731066647064,-404.578777,0.00022465,7]
[341655744,1731066647073,-404.578777,0.00022465,7]
[341655745,1731066647083,-592.08143046,0.00022465,2]
[341655746,1731066647092,-306.82438,0.00022465,7]
[341655747,1731066647102,-306.82438,0.00022465,7]
[341655748,1731066647111,-790.33,0.00022465,2]
[341655749,1731066647121,-306.82438,0.00022465,7]
[341655750,1731066647131,-306.824379,0.00022465,7]
[341655751,1731066647141,-474.204352,0.00022465,7]
[341655752,1731066647150,-474.204352,0.00022465,7]
[341655753,1731066647160,-474.204352,0.00022465,7]
[341655754,1731066647170,-474.204352,0.00022465,7]
[341655755,1731066647180,-474.204352,0.00022465,7]
[341655756,1731066647191,-474.204352,0.00022465,7]
[341655757,1731066647201,-500.0,0.00022465,2]
[341655758,1731066647210,-500.0,0.00022465,2]
[341655759,1731066647220,-697.83,0.00022465,2]
[341655760,1731066647229,-151.0,0.00022465,7]
[341655761,1731066647239,-500.0,0.00022465,2]
[341655762,1731066647249,-2869.89,0.00022465,2]
[341655763,1731066647259,-500.0,0.00022465,2]
[341655764,1731066647268,-515.793637,0.00022465,7]
[341655765,1731066647277,-515.793637,0.00022465,7]
[341655766,1731066647286,-500.0,0.00022465,2]
[341655767,1731066647295,-1805.2,0.00022465,2]
[341655768,1731066647304,-6803.73,0.00022465,2]
[341655769,1731066647313,-500.0,0.00022465,2]
[341655770,1731066647323,-500.0,0.00022465,2]
[341655771,1731066647332,-500.0,0.00022465,2]
[341655772,1731066647341,-5678.29,0.00022465,2]
[341655773,1731066647351,-151.0,0.00022465,7]
[341655774,1731066647360,-555.6,0.00022465,2]
[341655775,1731066647369,-1377.73,0.00022465,2]
[341655776,1731066647378,-500.0,0.00022465,2]
[341655777,1731066647388,-276.469466,0.00022465,7]
[341655778,1731066647397,-276.469472,0.00022465,7]
[341655779,1731066647406,-151.0,0.00022465,7]
[341655780,1731066647419,-500.0,0.00022465,2]
[341655781,1731066647428,-1301.98,0.00022465,2]
[341655782,1731066647437,-500.0,0.00022465,2]
[341655783,1731066647447,-500.0,0.00022465,2]
[341655784,1731066647457,-500.0,0.00022465,2]
[341655785,1731066647466,-500.0,0.00022465,2]
[341655786,1731066647475,-500.0,0.00022465,2]
[341655787,1731066647486,-650.7,0.00022465,2]
[341655788,1731066647495,-500.0,0.00022465,2]
[341655789,1731066647504,-500.0,0.00022465,2]
[341655790,1731066647513,-500.0,0.00022465,2]
[341655791,1731066647522,-500.0,0.00022465,2]
[341655792,1731066647532,-500.0,0.00022465,2]
[341655793,1731066647541,-500.0,0.00022465,2]
[341655794,1731066647550,-495.42779697,0.00022465,2]
[341655795,1731066647559,-500.0,0.00022465,2]
[341655796,1731066647568,-500.0,0.00022465,2]
[341655797,1731066647577,-500.0,0.00022465,2]
[341655798,1731066647587,-279.2713281,0.00022465,2]
[341655799,1731066647596,-500.0,0.00022465,2]
[341655800,1731066647605,-794.01,0.00022465,2]
[341655801,1731066647615,-500.0,0.00022465,2]
[341655802,1731066647625,-310.366626,0.00022639,7]
[341655803,1731066647634,-310.366626,0.00022639,7]
[341655804,1731066647643,-151.0,0.00022639,7]
[341655805,1731066647653,-151.0,0.00022639,7]
[341655806,1731066647662,-747.711241,0.00022639,7]
[341655807,1731066647671,-747.711241,0.00022639,7]
[341655808,1731066647680,-280.896412,0.00022639,7]
[341655809,1731066647689,-280.89642,0.00022639,7]
[341655810,1731066647699,-773.918999,0.00022639,7]
[341655811,1731066647708,-773.919005,0.00022639,7]
[341655812,1731066647717,-404.578777,0.00022639,7]
[341655813,1731066647726,-404.578772,0.00022639,7]
[341655814,1731066647735,-474.204352,0.00022639,7]
[341655815,1731066647744,-474.204351,0.00022639,7]
[341655816,1731066647754,-500.0,0.00022738,2]
[341655817,1731066647763,-500.0,0.00022738,2]
[341655818,1731066647773,-500.0,0.00022738,2]
[341655819,1731066647782,-385.41117655,0.00022738,2]
[341655820,1731066647791,-500.0,0.00022739,2]
[341655821,1731066647800,-310.366626,0.00022739,7]
[341655822,1731066647809,-310.366626,0.00022739,7]
[341655823,1731066647818,-151.0,0.00022739,7]
[341655824,1731066647827,-500.0,0.00022739,2]
[341655825,1731066647836,-500.0,0.00022739,2]
[341655826,1731066647846,-500.0,0.00022739,2]
[341655827,1731066647855,-151.0,0.00022739,7]
[341655828,1731066647864,-500.0,0.00022739,2]
[341655829,1731066647873,-500.0,0.00022739,2]
[341655830,1731066647882,-572.14790739,0.00022739,2]
[341655831,1731066647891,-292.357736,0.00022739,7]
[341655832,1731066647900,-292.357736,0.00022739,7]
[341655833,1731066647909,-292.357736,0.00022739,7]
[341655834,1731066647919,-292.357736,0.00022739,7]
[341655835,1731066647928,-500.0,0.00022739,2]
[341655836,1731066647937,-500.0,0.00022739,2]
[341655837,1731066647947,-500.0,0.00022739,2]
[341655838,1731066647956,-500.0,0.00022739,2]
[341655839,1731066647965,-500.0,0.00022739,2]
[341655840,1731066647974,-747.711241,0.00022739,7]
[341655841,1731066647983,-500.0,0.00022739,2]
[341655842,1731066647993,-500.0,0.00022739,2]
[341655843,1731066648003,-747.711241,0.00022739,7]
[341655844,1731066648012,-747.711241,0.00022739,7]
[341655845,1731066648021,-747.711241,0.00022739,7]
[341655846,1731066648031,-285.326077,0.00022739,7]
[341655847,1731066648040,-285.326077,0.00022739,7]
[341655848,1731066648050,-285.326077,0.00022739,7]
[341655849,1731066648059,-285.326077,0.00022739,7]
[341655850,1731066648068,-300.29,0.00022739,2]
[341655851,1731066648077,-750.444699,0.00022739,7]
[341655852,1731066648087,-750.444699,0.00022739,7]
[341655853,1731066648096,-500.0,0.00022739,2]
[341655854,1731066648105,-790.33,0.00022739,2]
[341655855,1731066648114,-500.0,0.00022739,2]
[341655856,1731066648123,-500.0,0.00022739,2]
[341655857,1731066648133,-697.83,0.00022739,2]
[341655858,1731066648142,-500.0,0.00022739,2]
[341655859,1731066648152,-2869.89,0.00022739,2]
[341655860,1731066648162,-500.0,0.00022739,2]
[341655861,1731066648172,-500.0,0.00022739,2]
[341655862,1731066648181,-1805.2,0.00022739,2]
[341655863,1731066648191,-6803.73,0.00022739,2]
[341655864,1731066648200,-500.0,0.00022739,2]
[341655865,1731066648210,-500.0,0.00022739,2]
[341655866,1731066648219,-5678.29,0.00022739,2]
[341655867,1731066648229,-555.6,0.00022739,2]
[341655868,1731066648238,-1377.73,0.00022739,2]
[341655869,1731066648247,-500.0,0.00022739,2]
[341655870,1731066648257,-500.0,0.00022739,2]
[341655871,1731066648266,-1301.98,0.00022739,2]
[341655872,1731066648275,-500.0,0.00022739,2]
[341655873,1731066648284,-640.4776018,0.00022739,2]
[341655874,1731066648293,-500.0,0.00022739,2]
[341655875,1731066648303,-500.0,0.00022739,2]
[341655876,1731066648312,-650.7,0.00022739,2]
[341655877,1731066648322,-500.0,0.00022739,2]
[341655878,1731066648332,-500.0,0.00022739,2]
[341655879,1731066648341,-500.0,0.00022739,2]
[341655880,1731066648352,-487.70654853,0.00022739,2]
[341655881,1731066648362,-500.0,0.00022739,2]
[341655882,1731066648372,-794.01,0.00022739,2]
[341655883,1731066648382,-500.0,0.00022739,2]
[341655884,1731066648391,-151.0,0.00022773,7]
[341655885,1731066648402,-285.326077,0.00022849,7]
[341655886,1731066648412,-285.32607843,0.00022849,7]
[341655887,1731066648425,-750.444707,0.00022849,7]
[341655888,1731066648434,-1878.31053352,0.0002285,2]
[341655889,1731066648444,-166.666666,0.00022944,2]
[341655890,1731066648455,-151.54,0.0002296,10]
[341655891,1731066648464,-2019.16079209,0.00023,2]
[341655892,1731066648474,-310.366626,0.00023,7]
[341655893,1731066648483,-310.366626,0.00023,7]
[341655894,1731066648496,-151.0,0.00023,7]
[341655895,1731066648506,-310.366626,0.00023013,7]
[341655896,1731066648515,-310.366626,0.00023013,7]
[341655897,1731066648525,-613.50405375,0.00023013,2]
[341655898,1731066648534,-205.0146299,0.00023013,2]
[341655899,1731066648544,-500.0,0.00023013,2]
[341655900,1731066648554,-151.0,0.00023013,7]
[341655901,1731066648564,-362.13959531,0.00023013,2]
[341655902,1731066648573,-500.0,0.00023013,2]
[341655903,1731066648583,-292.357736,0.00023013,7]
[341655904,1731066648592,-292.357736,0.00023013,7]
[341655905,1731066648601,-292.357736,0.00023013,7]
[341655906,1731066648611,-292.357736,0.00023013,7]
[341655907,1731066648620,-292.357736,0.00023013,7]
[341655908,1731066648629,-292.357736,0.00023013,7]
[341655909,1731066648640,-500.0,0.00023013,2]
[341655910,1731066648649,-500.0,0.00023013,2]
[341655911,1731066648658,-500.0,0.00023013,2]
[341655912,1731066648747,-500.0,0.00023013,2]
[341655913,1731066648757,-500.0,0.00023013,2]
[341655914,1731066648767,-747.711241,0.00023013,7]
[341655915,1731066648777,-747.711241,0.00023013,7]
[341655916,1731066648786,-747.711241,0.00023013,7]
[341655917,1731066648796,-747.711238,0.00023013,7]
[341655918,1731066648805,-790.33,0.00023013,2]
[341655919,1731066648815,-500.0,0.00023013,2]
[341655920,1731066648825,-500.0,0.00023013,2]
[341655921,1731066648835,-697.83,0.00023013,2]
[341655922,1731066648844,-2869.89,0.00023013,2]
[341655923,1731066648853,-500.0,0.00023013,2]
[341655924,1731066648863,-1805.2,0.00023013,2]
[341655925,1731066648872,-6803.73,0.00023013,2]
[341655926,1731066648881,-500.0,0.00023013,2]
[341655927,1731066648890,-5678.29,0.00023013,2]
[341655928,1731066648900,-500.0,0.00023013,2]
[341655929,1731066648910,-555.6,0.00023013,2]
[341655930,1731066648919,-1377.73,0.00023013,2]
[341655931,1731066648929,-500.0,0.00023013,2]
[341655932,1731066648940,-1301.98,0.00023013,2]
[341655933,1731066648949,-286.6,0.00023013,2]
[341655934,1731066648959,-500.0,0.00023013,2]
[341655935,1731066648968,-500.0,0.00023013,2]
[341655936,1731066648977,-650.7,0.00023013,2]
[341655937,1731066648987,-500.0,0.00023013,2]
[341655938,1731066648999,-500.0,0.00023013,2]
[341655939,1731066649009,-500.0,0.00023013,2]
[341655940,1731066649019,-500.0,0.00023013,2]
[341655941,1731066649028,-794.01,0.00023013,2]
[341655942,1731066649038,-471.0,0.00023014,2]
[341655943,1731066649047,-164.0,0.00023014,2]
[341655944,1731066649056,-34120.00971636,0.00023089,2]
[341655945,1731066649066,-310.366626,0.00023089,7]
[341655946,1731066649076,-310.366626,0.00023089,7]
[341655947,1731066649085,-292.357736,0.00023089,7]
[341655948,1731066649094,-292.357733,0.00023089,7]
[341655949,1731066649104,-622.34,0.00023277,3]
[341655950,1731066649113,-1015.8939145,0.0002328,2]
[341655951,1731066649123,-2838.97397431,0.00023286,2]
[341655952,1731066649133,-310.366626,0.00023287,7]
[341655953,1731066649143,-310.366626,0.00023287,7]
[341655954,1731066649152,-310.366626,0.00023287,7]
[341655955,1731066649161,-310.366634,0.00023287,7]
[341655956,1731066649170,-500.0,0.00023287,2]
[341655957,1731066649179,-500.0,0.00023287,2]
[341655958,1731066649191,-500.0,0.00023287,2]
[341655959,1731066649201,-287.30540183,0.00023287,2]
[341655960,1731066649211,-790.33,0.00023287,2]
[341655961,1731066649220,-500.0,0.00023287,2]
[341655962,1731066649230,-500.0,0.00023287,2]
[341655963,1731066649239,-697.83,0.00023287,2]
[341655964,1731066649248,-2869.89,0.00023287,2]
[341655965,1731066649258,-500.0,0.00023287,2]
[341655966,1731066649267,-1805.2,0.00023287,2]
[341655967,1731066649276,-6803.73,0.00023287,2]
[341655968,1731066649286,-500.0,0.00023287,2]
[341655969,1731066649295,-5678.29,0.00023287,2]
[341655970,1731066649305,-246.37244556,0.00023287,2]
[341655971,1731066649314,-555.6,0.00023287,2]
[341655972,1731066649323,-1377.73,0.00023287,2]
[341655973,1731066649333,-500.0,0.00023287,2]
[341655974,1731066649342,-1301.98,0.00023287,2]
[341655975,1731066649352,-500.0,0.00023287,2]
[341655976,1731066649362,-500.0,0.00023287,2]
[341655977,1731066649371,-650.7,0.00023287,2]
[341655978,1731066649380,-500.0,0.00023287,2]
[341655979,1731066649390,-500.0,0.00023287,2]
[341655980,1731066649400,-234.67,0.00023287,2]
[341655981,1731066649410,-500.0,0.00023287,2]
[341655982,1731066649424,-794.01,0.00023287,2]
[341655983,1731066649434,-500.0,0.00023288,2]
[341655984,1731066649444,-500.0,0.00023288,2]
[341655985,1731066649453,-500.0,0.00023288,2]
[341655986,1731066649464,-500.0,0.00023288,2]
[341655987,1731066649476,-416.60710568,0.00023288,2]
[341655988,1731066649485,-500.0,0.00023288,2]
[341655989,1731066649496,-500.0,0.00023288,2]
[341655990,1731066649512,-500.0,0.00023288,2]
[341655991,1731066649521,-500.0,0.00023288,2]
[341655992,1731066649531,-500.0,0.00023288,2]
[341655993,1731066649541,-500.0,0.00023288,2]
[341655994,1731066649552,-166.666666,0.00023456,2]
[341655995,1731066649561,-1000.0,0.00023542,2]
[341655996,1731066649571,-1000.0,0.00023542,2]
[341655997,1731066649581,-1000.0,0.00023542,2]
[341655998,1731066649590,-500.0,0.00023561,2]
[341655999,1731066649600,-500.0,0.00023561,2]
[341656000,1731066649611,-500.0,0.00023561,2]
[341656001,1731066649620,-790.33,0.00023561,2]
[341656002,1731066649629,-500.0,0.00023561,2]
[341656003,1731066649638,-500.0,0.00023561,2]
[341656004,1731066649648,-697.83,0.00023561,2]
[341656005,1731066649657,-2869.89,0.00023561,2]
[341656006,1731066649667,-500.0,0.00023561,2]
[341656007,1731066649677,-1805.2,0.00023561,2]
[341656008,1731066649687,-6803.73,0.00023561,2]
[341656009,1731066649700,-500.0,0.00023561,2]
[341656010,1731066649715,-5678.29,0.00023561,2]
[341656011,1731066649729,-555.6,0.00023561,2]
[341656012,1731066649743,-1377.73,0.00023561,2]
[341656013,1731066649754,-500.0,0.00023561,2]
[341656014,1731066649767,-1301.98,0.00023561,2]
[341656015,1731066649780,-500.0,0.00023561,2]
[341656016,1731066649793,-389.28553736,0.00023561,2]
[341656017,1731066649953,-110.71446264,0.00023561,2]
[341656018,1731066649963,-650.7,0.00023561,2]
[341656019,1731066649973,-500.0,0.00023561,2]
[341656020,1731066649985,-500.0,0.00023561,2]
[341656021,1731066649999,-794.01,0.00023561,2]
[341656022,1731066650013,-150.112233,0.000236,5]
[341656023,1731066650026,-151.564,0.0002362,10]
[341656024,1731066650037,-150.0,0.00023708,2]
[341656025,1731066650047,-425.42069662,0.00023708,2]
[341656026,1731066650165,-500.0,0.00021917,2]
[341656027,1731066650176,-500.0,0.00022191,2]
[341656028,1731066650187,-913.86884296,0.00022191,7]
[341656030,1731066763053,694.44444444,0.00020843,2]
[341656031,1731066765581,174.02475,0.00020546,2]
[341656032,1731066856103,193.003357,0.00020761,2]
[341656035,1731067121662,169.577937,0.00013973,2]
[341656041,1731067374369,694.44444444,0.00020843,2]
[341656042,1731067379497,225.444,0.00020353,2]
[341656045,1731067521872,1188.9971945,0.00020801,2]
[341656047,1731067566689,37173.6649,0.0002,2]
[341656048,1731067590118,-226.666666,0.00020872,2]
[341656049,1731067590140,-250.0,0.00020999,2]
[341656050,1731067590160,-226.666666,0.00021557,2]
[341656051,1731067590180,-213.91710057,0.000218,2]
[341656052,1731067590200,-765.61153662,0.00021817,2]
[341656053,1731067590220,-300.0,0.00021916,2]
[341656054,1731067590240,-300.0,0.00021916,2]
[341656055,1731067590259,-158.39432771,0.00021917,2]
[341656056,1731067590281,-500.0,0.00021917,2]
[341656057,1731067590300,-222.05113071,0.00021917,2]
[341656058,1731067590321,-500.0,0.00021917,2]
[341656059,1731067590341,-500.0,0.00021917,2]
[341656060,1731067590361,-500.0,0.00021917,2]
[341656061,1731067590380,-500.0,0.00021917,2]
[341656062,1731067590400,-500.0,0.00021917,2]
[341656063,1731067590420,-500.0,0.00021917,2]
[341656064,1731067590440,-518.99533167,0.00021917,2]
[341656065,1731067590460,-404.91982206,0.00021917,2]
[341656068,1731067625089,-300.0,0.00021916,2]
[341656069,1731067625111,-300.0,0.00021916,2]
[341656070,1731067625252,-179.55717325,0.00021917,2]
[341656071,1731067625277,-500.0,0.00021917,2]
[341656072,1731067625298,-500.0,0.00021917,2]
[341656073,1731067625317,-500.0,0.00021917,2]
[341656074,1731067625338,-597.58622362,0.00021917,2]
[341656075,1731067625358,-500.0,0.00021917,2]
[341656076,1731067625378,-500.0,0.00021917,2]
[341656077,1731067625401,-500.0,0.00021917,2]
[341656078,1731067625421,-500.0,0.00021917,2]
[341656079,1731067625441,-572.14790739,0.00021917,2]
[341656080,1731067625462,-500.0,0.00021917,2]
[341656081,1731067625483,-500.0,0.00021917,2]
[341656082,1731067625504,-592.75,0.00021917,2]
[341656083,1731067625526,-500.0,0.00021917,2]
[341656084,1731067625551,-500.0,0.00021917,2]
[341656085,1731067625572,-500.0,0.00021917,2]
[341656086,1731067625597,-500.0,0.00021917,2]
[341656087,1731067625617,-500.0,0.00021917,2]
[341656088,1731067625638,-500.0,0.00021917,2]
[341656089,1731067625658,-455.01368085,0.00021917,2]
[341656090,1731067625680,-500.0,0.00021917,2]
[341656091,1731067625703,-500.0,0.00021917,2]
[341656092,1731067625725,-508.5625979,0.00021917,2]
[341656093,1731067625748,-500.0,0.00021917,2]